lending/lending_fUSD_20250418
["ID","MTS","AMOUNT","RATE_DAILY","PERIOD"]
[358357651,1744985432860,-201.3019539,0.000759,39]
[358357653,1744985432869,-1000.0,0.00076,120]
[358357655,1744985432878,-162.351546,0.00076089,120]
[358357656,1744985432887,-451.63,0.00076141,30]
[358357658,1744985432895,-794.44,0.00076141,30]
[358357660,1744985432903,-788.5,0.00076141,30]
[358357662,1744985432912,-690.5443,0.00076361,2]
[358357664,1744985432920,-521.99058857,0.00076512,80]
[358357666,1744985432928,-500.0,0.00076712,120]
[358357668,1744985432935,-500.0,0.00076712,120]
[358357670,1744985432943,-500.0,0.00076712,120]
[358357672,1744985432951,-500.0,0.00076712,120]
[358357674,1744985432959,-500.0,0.00076712,120]
[358357676,1744985432967,-500.0,0.00076712,120]
[358357678,1744985432974,-500.0,0.00076712,120]
[358357680,1744985432981,-500.0,0.00076712,120]
[358357682,1744985432990,-500.0,0.00076712,120]
[358357684,1744985432997,-500.0,0.00076712,120]
[358357686,1744985433006,-500.0,0.00076712,120]
[358357688,1744985433015,-500.0,0.00076712,120]
[358357690,1744985433024,-2152.0,0.00076712,120]
[358357692,1744985433033,-500.0,0.00076712,120]
[358357694,1744985433041,-500.0,0.00076712,120]
[358357696,1744985433048,-540.11,0.00076712,120]
[358357697,1744985433056,-500.0,0.00076712,120]
[358357700,1744985433065,-637.25,0.00076712,120]
[358357702,1744985433075,-637.25,0.00076712,120]
[358357704,1744985433082,-637.25,0.00076712,120]
[358357706,1744985433090,-637.25,0.00076712,120]
[358357708,1744985433099,-500.0,0.00076712,120]
[358357732,1744985433324,-500.0,0.00076712,120]
[358357735,1744985433334,-500.0,0.00076712,120]
[358357737,1744985433343,-500.0,0.00076712,120]
[358357738,1744985433353,-500.0,0.00076712,120]
[358357740,1744985433363,-500.0,0.00076712,120]
[358357742,1744985433372,-500.0,0.00076712,120]
[358357745,1744985433382,-500.0,0.00076712,120]
[358357746,1744985433391,-500.0,0.00076712,120]
[358357748,1744985433401,-500.0,0.00076712,120]
[358357750,1744985433411,-500.0,0.00076712,2]
[358357753,1744985433422,-500.0,0.00076712,120]
[358357755,1744985433432,-500.0,0.00076712,120]
[358357757,1744985433441,-1000.0,0.00076712,120]
[358357759,1744985433450,-1000.0,0.00076712,120]
[358357761,1744985433459,-1000.0,0.00076712,120]
[358357763,1744985433469,-1000.0,0.00076712,120]
[358357765,1744985433478,-9278.24,0.00076712,7]
[358357767,1744985433487,-500.0,0.00076712,120]
[358357769,1744985433496,-500.0,0.00076712,120]
[358357770,1744985433505,-500.0,0.00076712,120]
[358357772,1744985433514,-500.0,0.00076712,120]
[358357774,1744985433523,-2407.67,0.00076712,120]
[358357776,1744985433532,-483.40542966,0.00076712,120]
[358357778,1744985433541,-500.0,0.00076712,120]
[358357780,1744985433550,-500.0,0.00076712,120]
[358357782,1744985433560,-500.0,0.00076712,120]
[358357785,1744985433569,-500.0,0.00076712,2]
[358357787,1744985433579,-500.0,0.00076712,120]
[358357789,1744985433588,-500.0,0.00076712,120]
[358357791,1744985433598,-500.0,0.00076712,120]
[358357793,1744985433607,-155.0,0.00076712,60]
[358357795,1744985433616,-600.0,0.00076712,120]
[358357796,1744985433626,-600.0,0.00076712,120]
[358357798,1744985433635,-246.53232353,0.00076722,15]
[358357800,1744985433645,-637.25,0.00076787,120]
[358357802,1744985433655,-500.0,0.00076787,120]
[358357804,1744985433664,-500.0,0.00076787,120]
[358357806,1744985433673,-996.25018536,0.00076787,120]
[358357808,1744985433683,-426.0,0.00077,120]
[358357810,1744985433692,-150.0,0.00077088,120]
[358357812,1744985433702,-500.0,0.00077088,120]
[358357814,1744985433711,-500.0,0.00077088,120]
[358357816,1744985433721,-500.0,0.00077088,120]
[358357818,1744985433730,-1334.8805,0.00077536,2]
[358357820,1744985433739,-426.0,0.0007774,120]
[358357822,1744985433749,-453.08516514,0.000779,50]
[358357824,1744985433758,-151.42924855,0.000779,30]
[358357826,1744985433769,-1065.17756577,0.000779,50]
[358357828,1744985433779,-745.25,0.00078122,2]
[358357830,1744985433789,-1000.0,0.0007823,120]
[358357832,1744985433799,-246.53232353,0.00078296,15]
[358357834,1744985433808,-150.0,0.00078458,120]
[358357836,1744985433818,-201.3019539,0.00078567,40]
[358357838,1744985433828,-500.0,0.00078606,120]
[358357840,1744985433839,-167.61,0.00078654,120]
[358357842,1744985433849,-2000.0,0.00078791,8]
[358357844,1744985433859,-546.88756042,0.00078799,120]
[358357846,1744985433870,-500.0,0.00078799,120]
[358357848,1744985433880,-500.0,0.00078799,120]
[358357850,1744985433891,-637.25,0.00078799,120]
[358357853,1744985433902,-637.25,0.00078799,120]
[358357855,1744985433912,-500.0,0.00078799,120]
[358357856,1744985433921,-500.0,0.00078799,120]
[358357859,1744985433931,-358.49380002,0.00078799,120]
[358357860,1744985433941,-501.0737743,0.00078835,10]
[358357862,1744985433950,-163.77605878,0.0007887,28]
[358357864,1744985433961,-150.0,0.00078885,120]
[358357867,1744985433974,-500.0,0.00078899,120]
[358357869,1744985433984,-500.0,0.00078899,2]
[358357871,1744985433993,-500.0,0.00078899,120]
[358357873,1744985434003,-564.50664,0.00078899,120]
[358357875,1744985434013,-500.0,0.00078899,120]
[358357877,1744985434023,-81301.16902787,0.000789,120]
[358357879,1744985434033,-314.13039942,0.0007897,15]
[358357881,1744985434043,-200.0,0.00079,28]
[358357883,1744985434054,-314.13039942,0.0007907,15]
[358357885,1744985434064,-15444.85327977,0.0007908,2]
[358357887,1744985434074,-9313.0442479,0.0007908,2]
[358357889,1744985434083,-500.0,0.00079099,120]
[358357891,1744985434093,-500.0,0.00079099,120]
[358357893,1744985434103,-500.0,0.000791,28]
[358357895,1744985434116,-314.13039942,0.0007917,15]
[358357897,1744985434126,-700.0,0.000792,28]
[358357899,1744985434135,-501.75938743,0.00079202,15]
[358357901,1744985434145,-314.13039942,0.0007927,15]
[358357903,1744985434155,-1000.0,0.000793,28]
[358357905,1744985434164,-500.0,0.00079319,2]
[358357907,1744985434173,-314.13039942,0.0007937,15]
[358357909,1744985434183,-1631.79302767,0.00079396,8]
[358357911,1744985434192,-1200.0,0.000794,28]
[358357913,1744985434201,-314.13039942,0.0007947,15]
[358357915,1744985434212,-153.18,0.000795,75]
[358357917,1744985434221,-153.18,0.000795,75]
[358357919,1744985434230,-153.18,0.000795,75]
[358357921,1744985434238,-153.18,0.000795,75]
[358357923,1744985434247,-153.18,0.000795,75]
[358357925,1744985434256,-153.18,0.000795,75]
[358357927,1744985434266,-153.18,0.000795,75]
[358357929,1744985434275,-153.18,0.000795,75]
[358357931,1744985434284,-153.18,0.000795,75]
[358357933,1744985434293,-200.0,0.000795,29]
[358357935,1744985434303,-314.13039942,0.0007957,15]
[358357937,1744985434312,-2000.0,0.000796,14]
[358357939,1744985434322,-200.0,0.000796,29]
[358357941,1744985434332,-314.13039942,0.0007967,15]
[358357943,1744985434341,-180.43640439,0.000797,29]
[358357959,1744985434479,-19.56359561,0.000797,29]
[358357961,1744985434491,-701.66985308,0.00079742,51]
[358357963,1744985434501,-314.13039942,0.0007977,15]
[358357965,1744985434511,-200.0,0.000798,29]
[358357967,1744985434521,-547.79050358,0.00079815,67]
[358357969,1744985434531,-637.25,0.00079821,120]
[358357971,1744985434541,-500.0,0.00079821,120]
[358357973,1744985434550,-150.0,0.00079828,120]
[358357975,1744985434560,-2152.0,0.00079842,120]
[358357977,1744985434570,-500.0,0.00079842,120]
[358357979,1744985434579,-500.0,0.00079842,120]
[358357981,1744985434589,-540.11,0.00079842,120]
[358357983,1744985434599,-500.0,0.00079842,120]
[358357985,1744985434609,-500.0,0.00079842,120]
[358357987,1744985434619,-500.0,0.00079842,120]
[358357989,1744985434628,-227.35929979,0.00079842,120]
[358357991,1744985434638,-9278.24,0.00079842,7]
[358357993,1744985434647,-500.0,0.00079842,120]
[358357995,1744985434657,-500.0,0.00079842,120]
[358357997,1744985434668,-500.0,0.00079842,120]
[358357999,1744985434678,-500.0,0.00079842,120]
[358358001,1744985434688,-2407.67,0.00079842,120]
[358358003,1744985434698,-500.0,0.00079842,120]
[358358005,1744985434708,-500.0,0.00079842,120]
[358358007,1744985434719,-547.79050356,0.00079842,67]
[358358009,1744985434728,-88888.0,0.00079845,120]
[358358011,1744985434738,-150.52,0.00079849,120]
[358358013,1744985434748,-500.0,0.00079856,120]
[358358015,1744985434757,-500.0,0.00079856,120]
[358358017,1744985434767,-500.0,0.00079858,2]
[358358019,1744985434777,-500.0,0.00079858,120]
[358358021,1744985434787,-103392.35561376,0.00079859,9]
[358358023,1744985434799,-3042.44310372,0.00079859,9]
[358358025,1744985434815,-1285.90345045,0.00079859,9]
[358358028,1744985434827,-562.76417773,0.00079859,9]
[358358030,1744985434839,-7211.0,0.00079859,9]
[358358168,1744985439654,-243.11719965,0.00068506,14]
[358358169,1744985439664,-360.48881046,0.00079859,9]
[358358170,1744985439715,-8201.47020001,0.00079859,9]
[358358171,1744985439727,-10385.86909626,0.00079859,9]
[358358172,1744985439738,-5371.0,0.00079859,9]
[358358173,1744985439750,-304.07304281,0.00079859,9]
[358358174,1744985439759,-547.1898255,0.00079859,9]
[358358175,1744985439774,-1570.0,0.00079859,9]
[358358176,1744985439887,-11583.1483912,0.00079859,9]
[358358177,1744985439897,-145.72189859,0.00079859,9]
[358358178,1744985440056,-527.55520127,0.00079859,9]
[358358190,1744985442426,-564.0224985,0.00079859,9]
[358358193,1744985443633,-153.89850706,0.00076712,7]
[358358194,1744985445491,-266.799003,0.00076712,7]
[358358195,1744985445612,-342.18505288,0.00076712,7]
[358358196,1744985445624,-2567.70680138,0.00076712,7]
[358358197,1744985445636,-397.31088,0.00076712,7]
[358358203,1744986308200,11000.0,0.0002,2]
[358358204,1744986308230,2500.0,0.0002,2]
[358358205,1744986308260,9500.0,0.0002,2]
[358358206,1744986308291,89800.0,0.0002,2]
[358358207,1744986308319,650000.0,0.0002,2]
[358358208,1744986308347,10000.0,0.0002,2]
[358358209,1744986308377,10000.0,0.0002,2]
[358358210,1744986308408,10000.0,0.0002,2]
[358358211,1744986308435,10000.0,0.0002,2]
[358358212,1744986308462,5000.0,0.0002,2]
[358358213,1744986308491,368300.0,0.0002,2]
[358358214,1744986308521,89000.0,0.0002,2]
[358358215,1744986328074,250.0,0.00011,2]
[358358216,1744986328103,599.03421608,0.00011,2]
[358358217,1744986340270,-160.52535,0.000199,2]
[358358218,1744986340296,-150.84465,0.000199,2]
[358358219,1744986348440,-202.0,0.000199,2]
[358358220,1744986357209,-193.18434558,0.000199,2]
[358358221,1744986366369,-333.26644957,0.000198,2]
[358358223,1744986369520,-212.44,0.000198,2]
[358358225,1744986378212,-187.76471044,0.000198,2]
[358358226,1744986383373,-212.23528956,0.000198,2]
[358358227,1744986394754,250.0,0.00017,2]
[358358228,1744986395347,-170.31845198,0.000198,2]
[358358229,1744986395838,300.0,0.00019,2]
[358358230,1744986396930,-3346.93839645,0.000198,2]
[358358231,1744986396963,-3420.80737335,0.000199,2]
[358358232,1744986396996,-4315.46193537,0.000199,2]
[358358233,1744986397028,-219.78881495,0.000199,2]
[358358234,1744986397064,-187.86968766,0.000199,2]
[358358235,1744986397096,-1856.02024726,0.000199,2]
[358358236,1744986397128,-187.76471044,0.000199,2]
[358358237,1744986397161,-500.0,0.00019973,2]
[358358238,1744986397203,-985965.34883452,0.0002,2]
[358358242,1744986423412,200.0,0.000196,7]
[358358243,1744986425517,500.0,0.000197,7]
[358358244,1744986426113,-300.0,0.00019999,2]
[358358245,1744986426143,-9998.59533471,0.0002,2]
[358358246,1744986427615,700.0,0.000198,7]
[358358247,1744986429718,1000.0,0.000199,7]
[358358248,1744986432096,-300.0,0.00019999,2]
[358358249,1744986432126,-657.90077622,0.0002,2]
[358358252,1744986437107,-550.19340845,0.0002,2]
[358358253,1744986439088,-4893.26361678,0.0002,2]
[358358254,1744986440642,-175.07046778,0.000199,2]
[358358255,1744986443567,-4188.41368615,0.000199,2]
[358358256,1744986443607,-271811.58631385,0.0002,2]
[358358263,1744986513872,143315.30973567,0.00048125,30]
[358358267,1744986550090,-1402.59787392,0.000199,2]
[358358268,1744986550113,-166.21307494,0.000199,2]
[358358269,1744986550136,-379.94837041,0.00019973,2]
[358358270,1744986550157,-500.0,0.00019973,2]
[358358271,1744986550185,-1267.87344955,0.0002,2]
[358358273,1744986552854,-300.0,0.00019999,2]
[358358275,1744986552891,-3669.62213719,0.0002,2]
[358358276,1744986552933,-532.66384793,0.0002,2]
[358358277,1744986554153,-5118.81621418,0.0002,2]
[358358279,1744986577898,-485.18291878,0.00019999,2]
[358358281,1744986602426,2000.0,0.0002,4]
[358358282,1744986602900,-177.40018702,0.000199,2]
[358358283,1744986602931,-250.0,0.0001995,2]
[358358284,1744986602963,-14.81708122,0.00019999,2]
[358358285,1744986602995,-216.70625129,0.00019999,2]
[358358298,1744986631692,-175.06522488,0.0001998,2]
[358358299,1744986631702,-150.51,0.0001999,2]
[358358300,1744986631711,-27.68358839,0.0001999,2]
[358358301,1744986631896,-122.82641161,0.0001999,2]
[358358302,1744986631906,-150.51,0.0001999,2]
[358358303,1744986631916,-150.51,0.0001999,2]
[358358304,1744986631926,-150.51,0.0001999,2]
[358358305,1744986631935,-150.51,0.0001999,2]
[358358306,1744986631945,-150.51,0.0001999,2]
[358358307,1744986631955,-150.51,0.0001999,2]
[358358308,1744986631964,-150.51,0.0001999,2]
[358358309,1744986631974,-150.51,0.0001999,2]
[358358311,1744986631983,-150.51,0.0001999,2]
[358358313,1744986631992,-150.51,0.0001999,2]
[358358315,1744986632002,-150.51,0.0001999,2]
[358358317,1744986632011,-150.51,0.0001999,2]
[358358319,1744986632021,-150.51,0.0001999,2]
[358358321,1744986632031,-150.51,0.0001999,2]
[358358323,1744986632040,-150.51,0.0001999,2]
[358358325,1744986632049,-150.51,0.0001999,2]
[358358327,1744986632059,-150.51,0.0001999,2]
[358358329,1744986632068,-150.51,0.0001999,2]
[358358331,1744986632078,-150.51,0.0001999,2]
[358358333,1744986632087,-150.51,0.0001999,2]
[358358335,1744986632097,-150.51,0.0001999,2]
[358358337,1744986632106,-150.51,0.0001999,2]
[358358339,1744986632116,-150.51,0.0001999,2]
[358358341,1744986632125,-150.51,0.0001999,2]
[358358343,1744986632134,-150.51,0.0001999,2]
[358358345,1744986632143,-150.51,0.0001999,2]
[358358347,1744986632152,-150.51,0.0001999,2]
[358358349,1744986632161,-150.51,0.0001999,2]
[358358351,1744986632173,-150.51,0.0001999,2]
[358358353,1744986632182,-150.51,0.0001999,2]
[358358355,1744986632192,-150.51,0.0001999,2]
[358358357,1744986632202,-150.51,0.0001999,2]
[358358359,1744986632211,-150.51,0.0001999,2]
[358358361,1744986632220,-150.51,0.0001999,2]
[358358363,1744986632229,-150.51,0.0001999,2]
[358358365,1744986632239,-150.51,0.0001999,2]
[358358367,1744986632248,-11.06205202,0.0001999,2]
[358358369,1744986632260,-139.44794798,0.0001999,2]
[358358371,1744986632269,-150.51,0.0001999,2]
[358358373,1744986632279,-150.51,0.0001999,2]
[358358375,1744986632288,-150.51,0.0001999,2]
[358358377,1744986632297,-135.06920382,0.0001999,2]
[358358379,1744986632309,-15.44079618,0.0001999,2]
[358358381,1744986632319,-150.51,0.0001999,2]
[358358383,1744986632328,-150.51,0.0001999,2]
[358358385,1744986632338,-150.51,0.0001999,2]
[358358387,1744986632348,-150.51,0.0001999,2]
[358358389,1744986632358,-150.51,0.0001999,2]
[358358391,1744986632368,-150.51,0.0001999,2]
[358358393,1744986632377,-150.51,0.0001999,2]
[358358394,1744986632386,-150.51,0.0001999,2]
[358358396,1744986632395,-150.51,0.0001999,2]
[358358398,1744986632404,-150.51,0.0001999,2]
[358358400,1744986632414,-150.51,0.0001999,2]
[358358402,1744986632423,-150.51,0.0001999,2]
[358358404,1744986632432,-150.51,0.0001999,2]
[358358406,1744986632442,-150.51,0.0001999,2]
[358358408,1744986632451,-150.51,0.0001999,2]
[358358410,1744986632460,-150.51,0.0001999,2]
[358358412,1744986632470,-312.43772213,0.0001999,2]
[358358422,1744986632677,-312.43772213,0.0001999,2]
[358358423,1744986632688,-300.0,0.00019999,2]
[358358424,1744986632698,-500.0,0.00019999,2]
[358358425,1744986632708,-83.29374871,0.00019999,2]
[358358426,1744986632718,-300.0,0.00019999,2]
[358358427,1744986632728,-150.0,0.00019999,2]
[358358428,1744986632738,-804988.46615415,0.0002,2]
[358358701,1744986637652,-1057.89844678,0.0002,2]
[358358702,1744986637664,-27378.33069456,0.0002,2]
[358358703,1744986637739,-1866.65773785,0.0002,2]
[358358704,1744986637806,-2898.58617708,0.0002,2]
[358358705,1744986637817,-333.794745,0.0002,2]
[358358706,1744986637888,-3171.30709101,0.0002,2]
[358358707,1744986637900,-605.51982495,0.0002,2]
[358358708,1744986637911,-1682.2401957,0.0002,2]
[358358709,1744986638010,-6867.93522344,0.0002,2]
[358358760,1744986638563,-2000000.0,0.0002,2]
[358358819,1744986639751,-879.24831843,0.0002,2]
[358358820,1744986639871,-573.674504,0.0002,2]
[358358821,1744986639981,-0.00833753,0.0002,2]
[358358822,1744986640012,-610.97657217,0.0002,2]
[358358823,1744986640068,-3793.99601141,0.0002,2]
[358358824,1744986640146,-5371.0,0.0002,2]
[358358825,1744986640181,-739.12079678,0.0002,2]
[358358827,1744986642329,-121467.04422539,0.0002,2]
[358358828,1744986642353,-1541.59809279,0.0002,2]
[358358829,1744986642377,-300.76056809,0.0002,2]
[358358830,1744986642401,-76690.59711373,0.0002,2]
[358358841,1744986642655,-827.40618245,0.0002,2]
[358358849,1744986642782,-1323342.48474218,0.0002,2]
[358358850,1744986642793,-2671.63,0.0002,2]
[358358870,1744986644095,-12434.38876038,0.0002,2]
[358358871,1744986644153,-200000.0,0.0002,2]
[358358872,1744986645095,-60363.51502814,0.0002,2]
[358358873,1744986645118,-32464.86419153,0.0002,2]
[358358876,1744986645690,-219.78881494,0.000208,2]
[358358877,1744986645700,-973.2031875,0.000208,2]
[358358878,1744986645810,-1154.73433001,0.000208,2]
[358358879,1744986645821,-3844.66342041,0.000208,2]
[358358880,1744986645832,-1503.21153924,0.000208,2]
[358358881,1744986645843,-139.94515569,0.000208,2]
[358358882,1744986645852,-604.00659143,0.000208,2]
[358358883,1744986645897,-844.0,0.000208,2]
[358358904,1744986646299,-4823.4533996,0.000208,2]
[358358932,1744986699703,967.29956764,0.00048125,30]
[358358941,1744986853766,162.46,0.00027425,30]
[358358952,1744987022284,-191.97,0.00020459,2]
[358358957,1744987082932,-17.76,0.00020459,2]
[358358958,1744987082956,-232.24,0.00020729,2]
[358358960,1744987100227,3212.47,0.00048044,30]
[358358967,1744987174435,191.97,0.00013699,2]
[358358970,1744987206154,-17.76,0.00020729,2]
[358358971,1744987206180,-232.24,0.00021,2]
[358358987,1744987418282,161.07,0.00025082,120]
[358358988,1744987418486,161.07,0.00028217,120]
[358358989,1744987418719,161.07,0.00031353,120]
[358358998,1744987635095,-117.76,0.00021,2]
[358358999,1744987635118,-250.0,0.00021739,2]
[358359000,1744987635139,-580.45897096,0.00022478,2]
[358359001,1744987645074,-367.47730638,0.00022478,2]
[358359002,1744987645095,-400.0,0.00023,2]
[358359003,1744987645118,-250.0,0.000231,2]
[358359004,1744987645139,-250.0,0.000231,2]
[358359005,1744987645160,-150.0,0.00023808,2]
[358359006,1744987645183,-1150.66,0.0002473,2]
[358359007,1744987645204,-500.0,0.00024773,2]
[358359008,1744987645225,-2402.77957473,0.0002478,2]
[358359009,1744987653135,-973.70251377,0.0002478,2]
[358359010,1744987653160,-300.0,0.00024787,2]
[358359011,1744987653184,-300.0,0.00024788,2]
[358359012,1744987653206,-300.0,0.00024788,2]
[358359013,1744987653228,-1275.0,0.00024789,2]
[358359014,1744987653250,-7188.46591522,0.0002479,2]
[358359015,1744987654089,-983.07459722,0.0002479,2]
[358359021,1744987747502,200.44,0.00019001,2]
[358359022,1744987773171,-150.97548029,0.00024666,20]
[358359023,1744987773193,-250.0,0.00024678,2]
[358359024,1744987773219,-637.83078471,0.0002469,2]
[358359025,1744987773241,-250.0,0.00024757,2]
[358359026,1744987773265,-300.0,0.00024789,2]
[358359027,1744987773287,-962.3588002,0.00024789,2]
[358359028,1744987773312,-300.0,0.00024789,2]
[358359029,1744987773336,-2402.7172054,0.0002479,2]
[358359030,1744987807722,161.34405,0.0002972,44]
[358359031,1744987807804,161.34405,0.0003003,45]
[358359032,1744987807862,161.34405,0.0003034,46]
[358359036,1744987831884,-265.08511399,0.00024789,2]
[358359037,1744987831899,-34.91488601,0.00024789,2]
[358359038,1744987831909,-200.0,0.00024789,10]
[358359039,1744987831918,-42538.7058096,0.0002479,2]
[358359040,1744987831933,-28609.70344494,0.0002479,2]
[358359041,1744987832110,-99.04531876,0.0002479,2]
[358359042,1744987832122,-13105.80062487,0.0002479,2]
[358359043,1744987832131,-189.88766657,0.0002479,2]
[358359044,1744987832141,-332.69,0.00024851,2]
[358359045,1744987832150,-450.0,0.00025,2]
[358359046,1744987832159,-1933.16,0.00025023,2]
[358359047,1744987832168,-1000.0,0.00025105,2]
[358359048,1744987832178,-649.4,0.00025108,2]
[358359049,1744987832188,-4225.66,0.00025117,2]
[358359050,1744987832198,-200.0,0.00025117,2]
[358359051,1744987832207,-2125.61,0.00025248,2]
[358359052,1744987832217,-1000.0,0.00025252,2]
[358359053,1744987832227,-15032.98,0.0002533,2]
[358359054,1744987832236,-200.0,0.00025345,2]
[358359055,1744987832246,-491.97,0.00025355,2]
[358359056,1744987832255,-4000.0,0.00025455,2]
[358359057,1744987832265,-630.79885609,0.00025456,2]
[358359058,1744987832274,-160.07,0.00025545,2]
[358359059,1744987832284,-3062.16,0.00025578,2]
[358359060,1744987832293,-250.0,0.00025598,2]
[358359061,1744987832304,-500.0,0.00025622,2]
[358359062,1744987832313,-500.0,0.00025622,2]
[358359063,1744987832323,-500.0,0.00025622,2]
[358359064,1744987832332,-500.0,0.00025622,2]
[358359065,1744987832342,-11086.76,0.00025632,2]
[358359066,1744987832352,-507.70982499,0.0002569,2]
[358359067,1744987832363,-500.0,0.0002569,2]
[358359068,1744987832372,-9727.45,0.00025762,2]
[358359069,1744987832382,-1176.15,0.00026016,2]
[358359070,1744987832391,-161.88,0.00026018,2]
[358359071,1744987832401,-1000.0,0.00026218,2]
[358359072,1744987832411,-5108.69,0.00026521,2]
[358359073,1744987832421,-299.97,0.00026553,2]
[358359074,1744987832430,-23900.0,0.00026706,2]
[358359075,1744987832440,-157.31,0.00026706,2]
[358359076,1744987832449,-1205.98,0.00026733,2]
[358359077,1744987832459,-2751.0,0.00026762,2]
[358359078,1744987832469,-183.96,0.00026791,2]
[358359079,1744987832479,-176.89,0.00026822,2]
[358359080,1744987832489,-420.0,0.00026861,2]
[358359081,1744987832498,-1150.66,0.00026994,2]
[358359082,1744987832508,-356.67322944,0.00027,2]
[358359083,1744987832521,-143.32677056,0.00027,2]
[358359084,1744987832530,-250.0,0.00027133,2]
[358359085,1744987832541,-420.0,0.00027137,2]
[358359086,1744987832551,-250.0,0.00027268,2]
[358359087,1744987832563,-300.0,0.00028126,2]
[358359088,1744987832574,-160.93902895,0.000288,2]
[358359089,1744987832588,-101114.35397717,0.00028886,2]
[358359211,1744987838046,-267.60969594,0.00025454,2]
[358359212,1744987838056,-218.49500629,0.00025454,2]
[358359213,1744987838066,-600.0,0.000274,2]
[358359214,1744987838076,-9709.94441765,0.00028886,2]
[358359215,1744987838091,-3463.06670384,0.00028886,2]
[358359216,1744987838202,-1588.3088567,0.00028886,2]
[358359217,1744987838214,-1468.58331581,0.00028886,2]
[358359219,1744987838226,-771.6,0.00028886,2]
[358359234,1744987840198,-617.23609784,0.00028886,2]
[358359235,1744987840210,-706.92422284,0.00028886,2]
[358359236,1744987840223,-1227.94749836,0.00028886,2]
[358359237,1744987840239,-1041.7594896,0.00028886,2]
[358359238,1744987840250,-506.73518609,0.000289,17]
[358359239,1744987840446,-101.50532431,0.00029,2]
[358359240,1744987840515,-448.49467569,0.00029,2]
[358359241,1744987840525,-344.23619721,0.00029105,2]
[358359242,1744987840536,-242.76380279,0.00029105,2]
[358359243,1744987840546,-392.48518512,0.00029258,2]
[358359244,1744987840558,-407.88749999,0.00029258,2]
[358359245,1744987840570,-350.28731489,0.00029258,2]
[358359246,1744987840579,-300.0,0.00029495,2]
[358359247,1744987840588,-1000.0,0.00029496,2]
[358359248,1744987840598,-587.0,0.00029707,2]
[358359249,1744987840608,-500.0,0.00029755,5]
[358359250,1744987840617,-500.0,0.0002989,5]
[358359251,1744987840627,-159.74081753,0.00029913,5]
[358359252,1744987840639,-523.5210164,0.00029913,5]
[358359253,1744987840649,-500.0,0.00029913,5]
[358359254,1744987840658,-500.0,0.00029913,5]
[358359255,1744987840667,-500.0,0.00029913,5]
[358359256,1744987840676,-501.00520135,0.00029913,5]
[358359257,1744987840686,-500.0,0.00029913,5]
[358359258,1744987840695,-501.33046128,0.00029913,5]
[358359259,1744987840704,-436.10856965,0.00029913,5]
[358359264,1744987842834,-63.89143035,0.00029913,5]
[358359266,1744987842844,-151.93580187,0.00029913,5]
[358359268,1744987842854,-500.0,0.00029913,5]
[358359269,1744987842864,-500.0,0.00029913,5]
[358359271,1744987842877,-159.46628018,0.00029913,5]
[358359272,1744987842886,-528.41572509,0.00029913,5]
[358359273,1744987842896,-500.0,0.00029913,5]
[358359274,1744987842906,-499.02863173,0.00029913,5]
[358359275,1744987842916,-152.87,0.0003,2]
[358359276,1744987842927,-29.19210778,0.00030054,5]